{"text_format":"1","workbook":"xlsx","n_sheets":1,"sheets":["Pressupost Bb2"],"not_rendered":{"charts":0,"images":1,"macros":1,"external_links":0,"defined_names":6,"comments":1,"pivot_tables":0},"unopened":[],"bounds":{"document_bytes":16777216,"sheet_cells":100000,"rows_first":2000,"rows_last":500,"rows_between":2000,"halvings":0,"cell_chars":16384,"cell_head_chars":4096},"cells_cut":0,"cells_raw":0,"read":"whole","date_system":"1900"}

{"sheet":"Pressupost Bb2","index":0,"n_rows":141,"n_cols":4,"rows_kept":141,"cut":false,"hidden":false,"merged":[[0,2,0,3],[2,2,3,3],[4,2,4,3],[132,0,132,3],[133,0,133,3],[122,0,122,3],[123,0,123,3],[128,0,128,3],[129,0,129,3],[16,0,16,3],[5,2,5,3],[2,0,3,1],[1,2,1,3],[126,0,126,3],[127,0,127,3],[125,0,125,3],[130,0,130,3],[131,0,131,3],[118,0,118,3],[119,0,119,3],[120,0,120,3],[121,0,121,3],[124,0,124,3],[137,0,137,3],[138,0,138,3],[139,0,139,3],[140,0,140,3],[134,0,134,3],[135,0,135,3],[136,0,136,3]]}
[null,null,"Document bàsic 3"]
[null,null,"Àmbit temàtic \"B\" INTERCOOPERACIÓ"]
["CONVOCATÒRIA 2024 DEL PROGRAMA DE SUBVENCIONS DE L’AJUNTAMENT DE BARCELONA PER L’ENFORTIMENT DE L’ECONOMIA SOCIAL I SOLIDÀRIA I PER LA INTERCOOPERACIÓ EN L’ESTRATÈGIA #ESSBCN2030 - ENFORTIM L’ESS 2024\n",null,"Modalitat \"Bb\": Creació i/o enfortiment d’ecosistemes cooperatius i clústers d’ESS mitjançant accions d’intercooperació, \nvinculades a l’Estratègia #ESSBCN2030 i als objectius estratègics del PIESS 2024-2027"]
[]
[null,null,"Atenció: Cal emplenar les cel·les en blanc i, si escau, afegir les files necessàries "]
[null,null,"Abans d'emplenar, consultar les anotacions a peu de pàgina"]
[]
["DADES BÀSIQUES"]
["Nom de la persona jurídica"]
["NIF de la persona jurídica"]
["Nom del projecte subvencionable"]
["Import total del projecte subvencionable"]
["Import imputable a la subvenció municipal"]
["Import de l'aportació / Cofinançament de l'organització",{"$f":"B12-B13","v":0}]
["% de l'import sol·licitat respecte el total del projecte subvencionable",{"$f":"B13/B12","v":{"$error":"#DIV/0!"}},"* La quantia de la subvenció atorgada no superarà el 80% de la despesa total del projecte a subvencionar. "]
[]
["PREVISIÓ DE DESPESES DEL PROJECTE SUBVENCIONABLE"]
["Partides","Import imputable a la subvenció municipal","Import de l'aportació / Cofinançament de l'organització","Import total del projecte"]
["D1. Nòmines i seguretat social IRPF (règim general o socis/es cooperativistes en règim d’autònoms) del personal propi vinculat al projecte subvencionable (màxim 25% import subvenció)",{"$f":"SUM(B20:B23)","v":0},{"$f":"SUM(C20:C23)","v":0},{"$f":"SUM(DespesesProjecte[[#This Row],[Import imputable a la subvenció municipal]],DespesesProjecte[[#This Row],[Import de l''aportació / Cofinançament de l''organització]])","v":0}]
[null,null,null,{"$f":"SUM(DespesesProjecte[[#This Row],[Import imputable a la subvenció municipal]],DespesesProjecte[[#This Row],[Import de l''aportació / Cofinançament de l''organització]])","v":0}]
[null,null,null,{"$f":"SUM(DespesesProjecte[[#This Row],[Import imputable a la subvenció municipal]],DespesesProjecte[[#This Row],[Import de l''aportació / Cofinançament de l''organització]])","v":0}]
[null,null,null,{"$f":"SUM(DespesesProjecte[[#This Row],[Import imputable a la subvenció municipal]],DespesesProjecte[[#This Row],[Import de l''aportació / Cofinançament de l''organització]])","v":0}]
[null,null,null,{"$f":"SUM(DespesesProjecte[[#This Row],[Import imputable a la subvenció municipal]],DespesesProjecte[[#This Row],[Import de l''aportació / Cofinançament de l''organització]])","v":0}]
["D2. Nòmines i seguretat social d’estudiants en pràctiques (amb un límit del 80% del seu sou brut corresponent al període de l’execució de la subvenció) - excepte si la seguretat social està bonificada",{"$f":"SUM(B25:B28)","v":0},{"$f":"SUM(C25:C28)","v":0},{"$f":"SUM(DespesesProjecte[[#This Row],[Import imputable a la subvenció municipal]],DespesesProjecte[[#This Row],[Import de l''aportació / Cofinançament de l''organització]])","v":0}]
[null,null,null,{"$f":"SUM(DespesesProjecte[[#This Row],[Import imputable a la subvenció municipal]],DespesesProjecte[[#This Row],[Import de l''aportació / Cofinançament de l''organització]])","v":0}]
[null,null,null,{"$f":"SUM(DespesesProjecte[[#This Row],[Import imputable a la subvenció municipal]],DespesesProjecte[[#This Row],[Import de l''aportació / Cofinançament de l''organització]])","v":0}]
[null,null,null,{"$f":"SUM(DespesesProjecte[[#This Row],[Import imputable a la subvenció municipal]],DespesesProjecte[[#This Row],[Import de l''aportació / Cofinançament de l''organització]])","v":0}]
[null,null,null,{"$f":"SUM(DespesesProjecte[[#This Row],[Import imputable a la subvenció municipal]],DespesesProjecte[[#This Row],[Import de l''aportació / Cofinançament de l''organització]])","v":0}]
["TOTAL DE DESPESES DEL PERSONAL\n",{"$f":"SUM(B19+B24)","v":0},{"$f":"SUM(C19+C24)","v":0},{"$f":"SUM(D19+D24)","v":0}]
["D3. Treballs realitzats per professionals i empreses externes directament vinculades al projecte",{"$f":"SUM(B31:B33)","v":0},{"$f":"SUM(C31:C33)","v":0},{"$f":"SUM(DespesesProjecte[[#This Row],[Import imputable a la subvenció municipal]],DespesesProjecte[[#This Row],[Import de l''aportació / Cofinançament de l''organització]])","v":0}]
[null,null,null,{"$f":"SUM(DespesesProjecte[[#This Row],[Import imputable a la subvenció municipal]],DespesesProjecte[[#This Row],[Import de l''aportació / Cofinançament de l''organització]])","v":0}]
[null,null,null,{"$f":"SUM(DespesesProjecte[[#This Row],[Import imputable a la subvenció municipal]],DespesesProjecte[[#This Row],[Import de l''aportació / Cofinançament de l''organització]])","v":0}]
[null,null,null,{"$f":"SUM(DespesesProjecte[[#This Row],[Import imputable a la subvenció municipal]],DespesesProjecte[[#This Row],[Import de l''aportació / Cofinançament de l''organització]])","v":0}]
["D4. Adquisició de materials i béns consumibles íntegrament imputables al projecte ",{"$f":"SUM(B35:B37)","v":0},{"$f":"SUM(C35:C37)","v":0},{"$f":"SUM(DespesesProjecte[[#This Row],[Import imputable a la subvenció municipal]],DespesesProjecte[[#This Row],[Import de l''aportació / Cofinançament de l''organització]])","v":0}]
[null,null,null,{"$f":"SUM(DespesesProjecte[[#This Row],[Import imputable a la subvenció municipal]],DespesesProjecte[[#This Row],[Import de l''aportació / Cofinançament de l''organització]])","v":0}]
[null,null,null,{"$f":"SUM(DespesesProjecte[[#This Row],[Import imputable a la subvenció municipal]],DespesesProjecte[[#This Row],[Import de l''aportació / Cofinançament de l''organització]])","v":0}]
[null,null,null,{"$f":"SUM(DespesesProjecte[[#This Row],[Import imputable a la subvenció municipal]],DespesesProjecte[[#This Row],[Import de l''aportació / Cofinançament de l''organització]])","v":0}]
["D5. Transport – missatgeria imputables al projecte",{"$f":"SUM(B39:B41)","v":0},{"$f":"SUM(C39:C41)","v":0},{"$f":"DespesesProjecte[[#This Row],[Import imputable a la subvenció municipal]]+DespesesProjecte[[#This Row],[Import de l''aportació / Cofinançament de l''organització]]","v":0}]
[null,null,null,{"$f":"SUM(DespesesProjecte[[#This Row],[Import imputable a la subvenció municipal]],DespesesProjecte[[#This Row],[Import de l''aportació / Cofinançament de l''organització]])","v":0}]
[null,null,null,{"$f":"SUM(DespesesProjecte[[#This Row],[Import imputable a la subvenció municipal]],DespesesProjecte[[#This Row],[Import de l''aportació / Cofinançament de l''organització]])","v":0}]
[null,null,null,{"$f":"SUM(DespesesProjecte[[#This Row],[Import imputable a la subvenció municipal]],DespesesProjecte[[#This Row],[Import de l''aportació / Cofinançament de l''organització]])","v":0}]
["D6. Publicitat i propaganda de les activitats directament vinculades al projecte",{"$f":"SUM(B43:B45)","v":0},{"$f":"SUM(C43:C45)","v":0},{"$f":"SUM(DespesesProjecte[[#This Row],[Import imputable a la subvenció municipal]],DespesesProjecte[[#This Row],[Import de l''aportació / Cofinançament de l''organització]])","v":0}]
[null,null,null,{"$f":"SUM(DespesesProjecte[[#This Row],[Import imputable a la subvenció municipal]],DespesesProjecte[[#This Row],[Import de l''aportació / Cofinançament de l''organització]])","v":0}]
[null,null,null,{"$f":"SUM(DespesesProjecte[[#This Row],[Import imputable a la subvenció municipal]],DespesesProjecte[[#This Row],[Import de l''aportació / Cofinançament de l''organització]])","v":0}]
[null,null,null,{"$f":"SUM(DespesesProjecte[[#This Row],[Import imputable a la subvenció municipal]],DespesesProjecte[[#This Row],[Import de l''aportació / Cofinançament de l''organització]])","v":0}]
["D7. Allotjament i dietes, del personal contractat i voluntari, vinculats al projecte",{"$f":"SUM(B47:B49)","v":0},{"$f":"SUM(C47:C49)","v":0},{"$f":"SUM(DespesesProjecte[[#This Row],[Import imputable a la subvenció municipal]],DespesesProjecte[[#This Row],[Import de l''aportació / Cofinançament de l''organització]])","v":0}]
[null,null,null,{"$f":"SUM(DespesesProjecte[[#This Row],[Import imputable a la subvenció municipal]],DespesesProjecte[[#This Row],[Import de l''aportació / Cofinançament de l''organització]])","v":0}]
[null,null,null,{"$f":"SUM(DespesesProjecte[[#This Row],[Import imputable a la subvenció municipal]],DespesesProjecte[[#This Row],[Import de l''aportació / Cofinançament de l''organització]])","v":0}]
[null,null,null,{"$f":"SUM(DespesesProjecte[[#This Row],[Import imputable a la subvenció municipal]],DespesesProjecte[[#This Row],[Import de l''aportació / Cofinançament de l''organització]])","v":0}]
["D8. Ajuts al transport per als/les participants dels projectes en cas que sigui necessari de manera justificada",{"$f":"SUM(B51:B53)","v":0},{"$f":"SUM(C51:C53)","v":0},{"$f":"SUM(DespesesProjecte[[#This Row],[Import imputable a la subvenció municipal]],DespesesProjecte[[#This Row],[Import de l''aportació / Cofinançament de l''organització]])","v":0}]
[null,null,null,{"$f":"SUM(DespesesProjecte[[#This Row],[Import imputable a la subvenció municipal]],DespesesProjecte[[#This Row],[Import de l''aportació / Cofinançament de l''organització]])","v":0}]
[null,null,null,{"$f":"SUM(DespesesProjecte[[#This Row],[Import imputable a la subvenció municipal]],DespesesProjecte[[#This Row],[Import de l''aportació / Cofinançament de l''organització]])","v":0}]
[null,null,null,{"$f":"SUM(DespesesProjecte[[#This Row],[Import imputable a la subvenció municipal]],DespesesProjecte[[#This Row],[Import de l''aportació / Cofinançament de l''organització]])","v":0}]
["D9. Viatges i desplaçaments imputables a les activitats del projecte",{"$f":"SUM(B55:B57)","v":0},{"$f":"SUM(C55:C57)","v":0},{"$f":"DespesesProjecte[[#This Row],[Import imputable a la subvenció municipal]]+DespesesProjecte[[#This Row],[Import de l''aportació / Cofinançament de l''organització]]","v":0}]
[null,null,null,{"$f":"SUM(DespesesProjecte[[#This Row],[Import imputable a la subvenció municipal]],DespesesProjecte[[#This Row],[Import de l''aportació / Cofinançament de l''organització]])","v":0}]
[null,null,null,{"$f":"SUM(DespesesProjecte[[#This Row],[Import imputable a la subvenció municipal]],DespesesProjecte[[#This Row],[Import de l''aportació / Cofinançament de l''organització]])","v":0}]
[null,null,null,{"$f":"SUM(DespesesProjecte[[#This Row],[Import imputable a la subvenció municipal]],DespesesProjecte[[#This Row],[Import de l''aportació / Cofinançament de l''organització]])","v":0}]
["D10. Tributs, quan siguin abonats directament per la persona jurídica o física beneficiària",{"$f":"SUM(B59:B61)","v":0},{"$f":"SUM(C59:C61)","v":0},{"$f":"DespesesProjecte[[#This Row],[Import imputable a la subvenció municipal]]+DespesesProjecte[[#This Row],[Import de l''aportació / Cofinançament de l''organització]]","v":0}]
[null,null,null,{"$f":"SUM(DespesesProjecte[[#This Row],[Import imputable a la subvenció municipal]],DespesesProjecte[[#This Row],[Import de l''aportació / Cofinançament de l''organització]])","v":0}]
[null,null,null,{"$f":"SUM(DespesesProjecte[[#This Row],[Import imputable a la subvenció municipal]],DespesesProjecte[[#This Row],[Import de l''aportació / Cofinançament de l''organització]])","v":0}]
[null,null,null,{"$f":"SUM(DespesesProjecte[[#This Row],[Import imputable a la subvenció municipal]],DespesesProjecte[[#This Row],[Import de l''aportació / Cofinançament de l''organització]])","v":0}]
["D11. Despeses de l'informe d'auditoria (màxim 1.500€ subvenció)",{"$f":"SUM(B63:B65)","v":0},{"$f":"SUM(C63:C65)","v":0},{"$f":"DespesesProjecte[[#This Row],[Import imputable a la subvenció municipal]]+DespesesProjecte[[#This Row],[Import de l''aportació / Cofinançament de l''organització]]","v":0}]
[null,null,null,{"$f":"SUM(DespesesProjecte[[#This Row],[Import imputable a la subvenció municipal]],DespesesProjecte[[#This Row],[Import de l''aportació / Cofinançament de l''organització]])","v":0}]
[null,null,null,{"$f":"SUM(DespesesProjecte[[#This Row],[Import imputable a la subvenció municipal]],DespesesProjecte[[#This Row],[Import de l''aportació / Cofinançament de l''organització]])","v":0}]
[null,null,null,{"$f":"SUM(DespesesProjecte[[#This Row],[Import imputable a la subvenció municipal]],DespesesProjecte[[#This Row],[Import de l''aportació / Cofinançament de l''organització]])","v":0}]
["D12. Altres despeses que de manera justificada i per la tipologia del projecte puguin imputar-se directament al projecte",{"$f":"SUM(B67:B69)","v":0},{"$f":"SUM(C67:C69)","v":0},{"$f":"DespesesProjecte[[#This Row],[Import imputable a la subvenció municipal]]+DespesesProjecte[[#This Row],[Import de l''aportació / Cofinançament de l''organització]]","v":0}]
[null,null,null,{"$f":"SUM(DespesesProjecte[[#This Row],[Import imputable a la subvenció municipal]],DespesesProjecte[[#This Row],[Import de l''aportació / Cofinançament de l''organització]])","v":0}]
[null,null,null,{"$f":"SUM(DespesesProjecte[[#This Row],[Import imputable a la subvenció municipal]],DespesesProjecte[[#This Row],[Import de l''aportació / Cofinançament de l''organització]])","v":0}]
[null,null,null,{"$f":"SUM(DespesesProjecte[[#This Row],[Import imputable a la subvenció municipal]],DespesesProjecte[[#This Row],[Import de l''aportació / Cofinançament de l''organització]])","v":0}]
["TOTAL D'ALTRES DESPESES DIRECTES",{"$f":"B30+B34+B38+B42+B46+B50+B54+B58+B62+B66","v":0},{"$f":"C30+C34+C38+C42+C46+C50+C54+C58+C62+C66","v":0},{"$f":"D30+D34+D38+D42+D46+D50+D54+D58+D62+D66","v":0}]
["TOTAL DESPESES DIRECTES (aquelles que s’identifiquen directament amb el projecte subvencionable)",{"$f":"B29+B70","v":0},{"$f":"C29+C70","v":0},{"$f":"D29+D70","v":0}]
["I1. Personal de suport al projecte (nòmines i seguretat social)",{"$f":"SUM(B73:B75)","v":0},{"$f":"SUM(C73:C75)","v":0},{"$f":"SUM(DespesesProjecte[[#This Row],[Import imputable a la subvenció municipal]],DespesesProjecte[[#This Row],[Import de l''aportació / Cofinançament de l''organització]])","v":0}]
[null,null,null,{"$f":"SUM(DespesesProjecte[[#This Row],[Import imputable a la subvenció municipal]],DespesesProjecte[[#This Row],[Import de l''aportació / Cofinançament de l''organització]])","v":0}]
[null,null,null,{"$f":"SUM(DespesesProjecte[[#This Row],[Import imputable a la subvenció municipal]],DespesesProjecte[[#This Row],[Import de l''aportació / Cofinançament de l''organització]])","v":0}]
[null,null,null,{"$f":"SUM(DespesesProjecte[[#This Row],[Import imputable a la subvenció municipal]],DespesesProjecte[[#This Row],[Import de l''aportació / Cofinançament de l''organització]])","v":0}]
["I2. Assegurances",{"$f":"SUM(B77:B79)","v":0},{"$f":"SUM(C77:C79)","v":0},{"$f":"SUM(DespesesProjecte[[#This Row],[Import imputable a la subvenció municipal]],DespesesProjecte[[#This Row],[Import de l''aportació / Cofinançament de l''organització]])","v":0}]
[null,null,null,{"$f":"SUM(DespesesProjecte[[#This Row],[Import imputable a la subvenció municipal]],DespesesProjecte[[#This Row],[Import de l''aportació / Cofinançament de l''organització]])","v":0}]
[null,null,null,{"$f":"SUM(DespesesProjecte[[#This Row],[Import imputable a la subvenció municipal]],DespesesProjecte[[#This Row],[Import de l''aportació / Cofinançament de l''organització]])","v":0}]
[null,null,null,{"$f":"SUM(DespesesProjecte[[#This Row],[Import imputable a la subvenció municipal]],DespesesProjecte[[#This Row],[Import de l''aportació / Cofinançament de l''organització]])","v":0}]
["I3. Amortització",{"$f":"SUM(B81:B83)","v":0},{"$f":"SUM(C81:C83)","v":0},{"$f":"SUM(DespesesProjecte[[#This Row],[Import imputable a la subvenció municipal]],DespesesProjecte[[#This Row],[Import de l''aportació / Cofinançament de l''organització]])","v":0}]
[null,null,null,{"$f":"SUM(DespesesProjecte[[#This Row],[Import imputable a la subvenció municipal]],DespesesProjecte[[#This Row],[Import de l''aportació / Cofinançament de l''organització]])","v":0}]
[null,null,null,{"$f":"SUM(DespesesProjecte[[#This Row],[Import imputable a la subvenció municipal]],DespesesProjecte[[#This Row],[Import de l''aportació / Cofinançament de l''organització]])","v":0}]
[null,null,null,{"$f":"SUM(DespesesProjecte[[#This Row],[Import imputable a la subvenció municipal]],DespesesProjecte[[#This Row],[Import de l''aportació / Cofinançament de l''organització]])","v":0}]
["I4. Lloguer de béns immobles",{"$f":"SUM(B85:B87)","v":0},{"$f":"SUM(C85:C87)","v":0},{"$f":"SUM(DespesesProjecte[[#This Row],[Import imputable a la subvenció municipal]],DespesesProjecte[[#This Row],[Import de l''aportació / Cofinançament de l''organització]])","v":0}]
[null,null,null,{"$f":"SUM(DespesesProjecte[[#This Row],[Import imputable a la subvenció municipal]],DespesesProjecte[[#This Row],[Import de l''aportació / Cofinançament de l''organització]])","v":0}]
[null,null,null,{"$f":"SUM(DespesesProjecte[[#This Row],[Import imputable a la subvenció municipal]],DespesesProjecte[[#This Row],[Import de l''aportació / Cofinançament de l''organització]])","v":0}]
[null,null,null,{"$f":"SUM(DespesesProjecte[[#This Row],[Import imputable a la subvenció municipal]],DespesesProjecte[[#This Row],[Import de l''aportació / Cofinançament de l''organització]])","v":0}]
["I5. Adquisició de materials i béns consumibles parcialment imputables al projecte",{"$f":"SUM(B89:B91)","v":0},{"$f":"SUM(C89:C91)","v":0},{"$f":"SUM(DespesesProjecte[[#This Row],[Import imputable a la subvenció municipal]],DespesesProjecte[[#This Row],[Import de l''aportació / Cofinançament de l''organització]])","v":0}]
[null,null,null,{"$f":"SUM(DespesesProjecte[[#This Row],[Import imputable a la subvenció municipal]],DespesesProjecte[[#This Row],[Import de l''aportació / Cofinançament de l''organització]])","v":0}]
[null,null,null,{"$f":"SUM(DespesesProjecte[[#This Row],[Import imputable a la subvenció municipal]],DespesesProjecte[[#This Row],[Import de l''aportació / Cofinançament de l''organització]])","v":0}]
[null,null,null,{"$f":"SUM(DespesesProjecte[[#This Row],[Import imputable a la subvenció municipal]],DespesesProjecte[[#This Row],[Import de l''aportació / Cofinançament de l''organització]])","v":0}]
["I6. Manteniment d’edificis i/o instal·lacions",{"$f":"SUM(B93:B95)","v":0},{"$f":"SUM(C93:C95)","v":0},{"$f":"SUM(DespesesProjecte[[#This Row],[Import imputable a la subvenció municipal]],DespesesProjecte[[#This Row],[Import de l''aportació / Cofinançament de l''organització]])","v":0}]
[null,null,null,{"$f":"SUM(DespesesProjecte[[#This Row],[Import imputable a la subvenció municipal]],DespesesProjecte[[#This Row],[Import de l''aportació / Cofinançament de l''organització]])","v":0}]
[null,null,null,{"$f":"SUM(DespesesProjecte[[#This Row],[Import imputable a la subvenció municipal]],DespesesProjecte[[#This Row],[Import de l''aportació / Cofinançament de l''organització]])","v":0}]
[null,null,null,{"$f":"SUM(DespesesProjecte[[#This Row],[Import imputable a la subvenció municipal]],DespesesProjecte[[#This Row],[Import de l''aportació / Cofinançament de l''organització]])","v":0}]
["I7. Comunicacions (telèfon, correus, connexió a internet)",{"$f":"SUM(B97:B99)","v":0},{"$f":"SUM(C97:C99)","v":0},{"$f":"SUM(DespesesProjecte[[#This Row],[Import imputable a la subvenció municipal]],DespesesProjecte[[#This Row],[Import de l''aportació / Cofinançament de l''organització]])","v":0}]
[null,null,null,{"$f":"SUM(DespesesProjecte[[#This Row],[Import imputable a la subvenció municipal]],DespesesProjecte[[#This Row],[Import de l''aportació / Cofinançament de l''organització]])","v":0}]
[null,null,null,{"$f":"SUM(DespesesProjecte[[#This Row],[Import imputable a la subvenció municipal]],DespesesProjecte[[#This Row],[Import de l''aportació / Cofinançament de l''organització]])","v":0}]
[null,null,null,{"$f":"SUM(DespesesProjecte[[#This Row],[Import imputable a la subvenció municipal]],DespesesProjecte[[#This Row],[Import de l''aportació / Cofinançament de l''organització]])","v":0}]
["I8. Despeses financeres",{"$f":"SUM(B101:B103)","v":0},{"$f":"SUM(C101:C103)","v":0},{"$f":"SUM(DespesesProjecte[[#This Row],[Import imputable a la subvenció municipal]],DespesesProjecte[[#This Row],[Import de l''aportació / Cofinançament de l''organització]])","v":0}]
[null,null,null,{"$f":"SUM(DespesesProjecte[[#This Row],[Import imputable a la subvenció municipal]],DespesesProjecte[[#This Row],[Import de l''aportació / Cofinançament de l''organització]])","v":0}]
[null,null,null,{"$f":"SUM(DespesesProjecte[[#This Row],[Import imputable a la subvenció municipal]],DespesesProjecte[[#This Row],[Import de l''aportació / Cofinançament de l''organització]])","v":0}]
[null,null,null,{"$f":"SUM(DespesesProjecte[[#This Row],[Import imputable a la subvenció municipal]],DespesesProjecte[[#This Row],[Import de l''aportació / Cofinançament de l''organització]])","v":0}]
["I9. Subministraments ",{"$f":"SUM(B105:B107)","v":0},{"$f":"SUM(C105:C107)","v":0},{"$f":"SUM(DespesesProjecte[[#This Row],[Import imputable a la subvenció municipal]],DespesesProjecte[[#This Row],[Import de l''aportació / Cofinançament de l''organització]])","v":0}]
[null,null,null,{"$f":"SUM(DespesesProjecte[[#This Row],[Import imputable a la subvenció municipal]],DespesesProjecte[[#This Row],[Import de l''aportació / Cofinançament de l''organització]])","v":0}]
[null,null,null,{"$f":"SUM(DespesesProjecte[[#This Row],[Import imputable a la subvenció municipal]],DespesesProjecte[[#This Row],[Import de l''aportació / Cofinançament de l''organització]])","v":0}]
[null,null,null,{"$f":"SUM(DespesesProjecte[[#This Row],[Import imputable a la subvenció municipal]],DespesesProjecte[[#This Row],[Import de l''aportació / Cofinançament de l''organització]])","v":0}]
["I10. Treball realitzat per altres empreses, parcialment imputables al projecte (neteja, seguretat...)",{"$f":"SUM(B109:B111)","v":0},{"$f":"SUM(C109:C111)","v":0},{"$f":"SUM(DespesesProjecte[[#This Row],[Import imputable a la subvenció municipal]],DespesesProjecte[[#This Row],[Import de l''aportació / Cofinançament de l''organització]])","v":0}]
[null,null,null,{"$f":"SUM(DespesesProjecte[[#This Row],[Import imputable a la subvenció municipal]],DespesesProjecte[[#This Row],[Import de l''aportació / Cofinançament de l''organització]])","v":0}]
[null,null,null,{"$f":"SUM(DespesesProjecte[[#This Row],[Import imputable a la subvenció municipal]],DespesesProjecte[[#This Row],[Import de l''aportació / Cofinançament de l''organització]])","v":0}]
[null,null,null,{"$f":"SUM(DespesesProjecte[[#This Row],[Import imputable a la subvenció municipal]],DespesesProjecte[[#This Row],[Import de l''aportació / Cofinançament de l''organització]])","v":0}]
["TOTAL DESPESES INDIRECTES (es podran assignar al projecte subvencionable fent sevir un percentatge d’assignació) - Màxim 10% de l’import imputable a la subvenció municipal",{"$f":"SUM(B72,B76,B80,B84,B88,B92,B96,B100,B104,B108)","v":0},{"$f":"SUM(C72,C76,C80,C84,C88,C92,C96,C100,C104,C108)","v":0},{"$f":"SUM(D72,D76,D80,D84,D88,D92,D96,D100,D104,D108)","v":0}]
["TOTAL DE DESPESES PREVISTES",{"$f":"SUM(B112,B71)","v":0},{"$f":"SUM(C112,C71)","v":0},{"$f":"SUM(D112,D71)","v":0}]
[]
[]
["Atenció: En cas de persones jurídiques no signeu aquest document ara.\nMés endavant signareu digitalment aquest document"]
[]
[]
["Modalitat Bb. Creació i/o enfortiment d’ecosistemes cooperatius i clústers d’ESS mitjançant accions d’intercooperació, vinculades a l’Estratègia #ESSBCN2030 i als objectius estratègics del PIESS 2024-2027"]
[" 1. La quantia de la subvenció atorgada no superarà el 80% de la despesa total del projecte a subvencionar. "]
[" 2. L'import màxim de subvenció per a aquesta modalitat Bb és 30.000€.\n"]
[" 3. En el cas que la sol·licitud presentada sobrepassi l’import màxim, es considerarà com a import sol·licitat el màxim de l'establert a la convocatòria."]
[" 4. En aquesta modalitat s'acceptarà la imputació de despeses de personal propi i directament vinculat al projecte de les organitzacions participants de l'acord d'intercooperació."]
[" 5. Es limita amb un màxim del 25% l'import de la subvenció per  a despeses de personal propi assignat directament al projecte subvencionat (règim general o socis/es cooperativistes en règim d’autònoms-), i un 80% per a nòmines i seguretat social d’estudiants en pràctiques (sou brut corresponent al període de l’execució de la subvenció) - excepte si la seguretat social està bonificada."]
[" 6. En el cas de lloguers d’immobles les despeses de lloguer s’imputaran a les despeses indirectes amb el límit establert per aquestes despeses indirectes."]
[" 7. Per a les subvencions atorgades per import igual o superior a 20.000 € és necessari un informe d'auditoria per a la justificació. L'import d'aquest informe es considera despesa subvencionable, amb un límit màxim de 1.500€."]
[" 8. Són imputables en aquesta modalitat les despeses indirectes, detallades en l’apartat 13.3. de les bases reguladores; amb un màxim del 10% de l'import de la subvenció.\nEl caràcter subvencionable de la despesa d'amortització estarà subjecte a les condicions següents:\n> Que les subvencions no hagin contribuït a la compra dels béns.\n> Que l'amortització es calculi de conformitat amb les normes de comptabilitat generalment acceptades.\n> Que el cost es refereixi al període subvencionable.\n\n"]
[" 9. Quan s'hagi de fer despeses de més de 12.000 €, sense IVA, en el cas de prestacions de serveis o lliurament de béns i per aquelles despeses de més de 30.000 €,  sense IVA, en el cas d'execució d'obres, s'hauran d'incorporar tres pressupostos sol·licitats i argumentar el motiu de l'adjudicació en el cas de no ser la proposta més avantatjosa econòmicament."]
[" 10. No seran elegibles factures d'empreses emeses entre les organitzacions participants de l'acord de col·laboració."]
[" 11. En cap cas es consideraran despeses subvencionables:\n> Els impostos indirectes quan siguin susceptibles de recuperació o compensació.\n> Les despeses d'inversió, incloses les adquisicions de béns mobles.\n> Les despeses realitzades amb data anterior a l'inici del projecte i data posterior a la finalització del projecte.\n> Altres despeses que s'indiquin a la convocatòria."]
[" 12. La retribució de les persones contractades en el marc del projecte subvencionat no pot ser inferior al Salari Mínim Interprofessional (SMI), ni a l'estipulada al corresponent conveni o marc normatiu de referència (punt 7 de les bases 2024: requisits dels projectes). "]
[" 13. Els materials produïts de difusió, estudis, informes o materials didàctics utilitzats, etc. en el cas de tractar-se de despesa elegible de la subvenció, hauran de tenir llicència Creative Commons -Compartir Igual- (share a like)  i no podrà tenir la condició –Sense Obres Derivades- (no derivate Works)."]
[" 14. Els projectes subvencionats han de fomentar activitats d'interès públic o social, les quals han de ser gratuïtes per a les persones participants o en cap cas el preu ha de suposar un obstacle per a la seva participació, buscant altres formes d'accés per a persones amb dificultats econòmiques. En el cas que hi hagi algun tipus de lucre, haurà de revertir en les pròpies activitats subvencionades."]
[" 15. L'Ajuntament de Barcelona i les seves entitats municipals en cap cas subvencionaran el mateix projecte, executat durant el mateix període, per cap altre procediment de concessió que no sigui el regulat per les bases reguladores."]
[" 16. El/la beneficiari/ària no podrà alterar en cap cas el destí de les subvencions concedides."]
[" 17. L'organització designada com a representant de l'agrupació serà plenament responsable del projecte davant l'Ajuntament respecte al compliment de les obligacions establertes en les bases reguladores, sense perjudici de la responsabilitat de les altres organitzacions sòcies de l'agrupació, tot sent-li d'aplicació els requisits previstos al punt 6.1 de les bases reguladores. "]
[" 18. En cap cas podran formar part de l'agrupació les organitzacions que hagin rebut altres subvencions per a l'execució del mateix projecte d'altres administracions públiques."]
[" 19. El programa de pràctiques de l’alumne/a ha de ser d’una durada mínima de 400 hores o superior."]
[" 20. Només pot presentar-se una sol·licitud per un lloc de pràctiques per organització sol·licitant."]
[" 21. Caldrà remunerar l’alumne/a en pràctiques universitàries (curriculars o extracurriculars) amb un cost brut hora mínim de 6€/hora o superior."]
[" 22. Caldrà remunerar l’alumne/a segons la modalitat d’FP dual escollida com a mínim d’acord amb la normativa específica que estableix el Departament d’Educació de la Generalitat de Catalunya o superior. "]